[Event "Early-Titled-Tuesday-Blitz-October-24-2023"]
[Site "Chess.com"]
[Date "2023.10.24"]
[Round "7"]
[White "Zhbugnoimt"]
[Black "Bilan_Danila"]
[Result "0-1"]
[WhiteElo "2557"]
[BlackElo "2424"]
[TimeControl "180+1"]
[EndTime "9:15:17 PDT"]
[Termination "Bilan_Danila won by resignation"]

1. e4 {[%clk 0:03:00.9]} 1... c6 {[%clk 0:02:59.1]} 2. d4 {[%clk 0:03:00.9]}
2... d5 {[%clk 0:03:00]} 3. e5 {[%clk 0:03:01.6]} 3... c5 {[%clk 0:03:00.4]} 4.
Nf3 {[%clk 0:03:01.5]} 4... Nc6 {[%clk 0:03:00.8]} 5. c4 {[%clk 0:03:02.1]} 5...
e6 {[%clk 0:03:00.1]} 6. Nc3 {[%clk 0:03:01.2]} 6... cxd4 {[%clk 0:02:58.1]} 7.
Nxd4 {[%clk 0:03:02.1]} 7... Bc5 {[%clk 0:02:56.9]} 8. Nxc6 {[%clk 0:02:59.4]}
8... bxc6 {[%clk 0:02:56.7]} 9. Qg4 {[%clk 0:03:00.3]} 9... Bf8 {[%clk 0:02:20]}
10. Be2 {[%clk 0:02:51.3]} 10... h5 {[%clk 0:02:19.1]} 11. Qf4 {[%clk
0:02:38.3]} 11... Ne7 {[%clk 0:02:14.2]} 12. cxd5 {[%clk 0:02:01.3]} 12... cxd5
{[%clk 0:01:56.8]} 13. O-O {[%clk 0:02:01]} 13... Ng6 {[%clk 0:01:52.9]} 14. Qd4
{[%clk 0:01:56.9]} 14... Qb6 {[%clk 0:01:42.5]} 15. Bb5+ {[%clk 0:01:42.9]}
15... Bd7 {[%clk 0:01:31.7]} 16. Qa4 {[%clk 0:01:40.4]} 16... Rd8 {[%clk
0:01:20.3]} 17. Be3 {[%clk 0:01:38.9]} 17... Bc5 {[%clk 0:01:13.8]} 18. Bxc5
{[%clk 0:00:38.1]} 18... Qxc5 {[%clk 0:01:14.7]} 19. Rac1 {[%clk 0:00:38.5]}
19... Qe7 {[%clk 0:00:44.3]} 20. Qxa7 {[%clk 0:00:24.5]} 20... Bxb5 {[%clk
0:00:36.1]} 21. Qxe7+ {[%clk 0:00:19]} 21... Kxe7 {[%clk 0:00:33]} 22. Nxb5
{[%clk 0:00:19.9]} 22... Nxe5 {[%clk 0:00:33.3]} 23. Rc7+ {[%clk 0:00:19.7]}
23... Rd7 {[%clk 0:00:32.6]} 24. Rfc1 {[%clk 0:00:20.6]} 24... Rb8 {[%clk
0:00:30.3]} 25. a4 {[%clk 0:00:20.7]} 25... Nc4 {[%clk 0:00:30.6]} 26. Rxd7+
{[%clk 0:00:19.3]} 26... Kxd7 {[%clk 0:00:30.9]} 27. b3 {[%clk 0:00:20.2]} 27...
Ne5 {[%clk 0:00:13]} 28. Rc7+ {[%clk 0:00:20.6]} 28... Kd8 {[%clk 0:00:13.4]}
29. f4 {[%clk 0:00:19.6]} 29... Rxb5 {[%clk 0:00:12.2]} 30. Ra7 {[%clk
0:00:11.8]} 30... Nc6 {[%clk 0:00:11.8]} 31. Rxf7 {[%clk 0:00:11.2]} 31... Rxb3
{[%clk 0:00:10.4]} 32. Rxg7 {[%clk 0:00:12.1]} 32... d4 {[%clk 0:00:10.2]} 33.
Rg5 {[%clk 0:00:11.4]} 33... d3 {[%clk 0:00:09.7]} 34. Kf2 {[%clk 0:00:12.1]}
34... d2 {[%clk 0:00:06.5]} 35. Ke2 {[%clk 0:00:12.4]} 35... Rd3 {[%clk
0:00:06.8]} 36. Kd1 {[%clk 0:00:09.4]} 36... Kd7 {[%clk 0:00:05.2]} 37. Rxh5
{[%clk 0:00:09.6]} 37... Nd4 {[%clk 0:00:05]} 38. a5 {[%clk 0:00:09.8]} 38...
Ne2 {[%clk 0:00:03.6]} 39. Rh7+ {[%clk 0:00:08.4]} 39... Kd6 {[%clk 0:00:03.6]}
0-1

[Event "Early-Titled-Tuesday-Blitz-October-24-2023"]
[Site "Chess.com"]
[Date "2023.10.24"]
[Round "7"]
[White "DonJuanEGenaro"]
[Black "mary-sanna"]
[Result "1-0"]
[WhiteElo "1828"]
[BlackElo "2202"]
[TimeControl "180+1"]
[EndTime "9:15:21 PDT"]
[Termination "DonJuanEGenaro won by resignation"]

1. d4 {[%clk 0:03:00.9]} 1... Nf6 {[%clk 0:02:59.2]} 2. Nf3 {[%clk 0:02:50.5]}
2... d5 {[%clk 0:02:57.1]} 3. c4 {[%clk 0:02:49.5]} 3... e6 {[%clk 0:02:54.9]}
4. Nc3 {[%clk 0:02:48.6]} 4... c5 {[%clk 0:02:51]} 5. cxd5 {[%clk 0:02:47.6]}
5... exd5 {[%clk 0:02:50.9]} 6. g3 {[%clk 0:02:47]} 6... Nc6 {[%clk 0:02:49.8]}
7. Bg2 {[%clk 0:02:46.8]} 7... cxd4 {[%clk 0:02:49.5]} 8. Nxd4 {[%clk
0:02:45.9]} 8... Bc5 {[%clk 0:02:49.5]} 9. Nb3 {[%clk 0:02:39.5]} 9... Bb6
{[%clk 0:02:49.1]} 10. Nxd5 {[%clk 0:02:36.9]} 10... O-O {[%clk 0:02:48.1]} 11.
O-O {[%clk 0:02:13.6]} 11... Be6 {[%clk 0:02:38.4]} 12. e4 {[%clk 0:02:06.6]}
12... Rc8 {[%clk 0:02:00.2]} 13. Bg5 {[%clk 0:02:00.5]} 13... Bxd5 {[%clk
0:01:55]} 14. exd5 {[%clk 0:01:55.3]} 14... Nb4 {[%clk 0:01:53.6]} 15. d6 {[%clk
0:01:31.9]} 15... h6 {[%clk 0:01:28]} 16. Bxf6 {[%clk 0:01:23.7]} 16... Qxf6
{[%clk 0:01:28.9]} 17. Bxb7 {[%clk 0:01:04.5]} 17... Rc2 {[%clk 0:01:12.2]} 18.
Qf3 {[%clk 0:00:36.4]} 18... Qxd6 {[%clk 0:01:03]} 19. a3 {[%clk 0:00:32.7]}
19... Nd3 {[%clk 0:00:33.8]} 20. Rad1 {[%clk 0:00:31.9]} 20... Bxf2+ {[%clk
0:00:19.7]} 21. Rxf2 {[%clk 0:00:29.3]} 21... Rxf2 {[%clk 0:00:17.8]} 22. Qxf2
{[%clk 0:00:28.8]} 22... Nxf2 {[%clk 0:00:10.3]} 23. Rxd6 {[%clk 0:00:27.8]}
23... Nh3+ {[%clk 0:00:09.9]} 24. Kg2 {[%clk 0:00:26.9]} 24... Ng5 {[%clk
0:00:09.9]} 25. h4 {[%clk 0:00:26.1]} 25... Ne6 {[%clk 0:00:07.6]} 26. Bd5
{[%clk 0:00:25.8]} 26... Nd8 {[%clk 0:00:06.6]} 27. Rd7 {[%clk 0:00:25.1]} 27...
a5 {[%clk 0:00:03.1]} 28. Nxa5 {[%clk 0:00:24.2]} 28... g6 {[%clk 0:00:02.6]}
29. Nb7 {[%clk 0:00:22.1]} 29... Nxb7 {[%clk 0:00:01.8]} 30. Rxb7 {[%clk
0:00:21.9]} 30... Kg7 {[%clk 0:00:01.9]} 31. Rxf7+ {[%clk 0:00:17.3]} 31... Rxf7
{[%clk 0:00:02]} 32. Bxf7 {[%clk 0:00:16.9]} 32... Kxf7 {[%clk 0:00:02.9]} 33.
b4 {[%clk 0:00:16.5]} 33... Ke6 {[%clk 0:00:03.8]} 34. Kf3 {[%clk 0:00:16.6]}
34... Kd5 {[%clk 0:00:04.7]} 35. b5 {[%clk 0:00:16.6]} 35... Kc5 {[%clk
0:00:04.4]} 36. a4 {[%clk 0:00:16.7]} 36... Kb6 {[%clk 0:00:04.7]} 37. Ke4
{[%clk 0:00:16.8]} 37... g5 {[%clk 0:00:03.9]} 38. hxg5 {[%clk 0:00:16.1]} 38...
hxg5 {[%clk 0:00:04.4]} 39. Kf5 {[%clk 0:00:16.3]} 39... Ka5 {[%clk 0:00:04.7]}
40. Kxg5 {[%clk 0:00:15.9]} 40... Kxa4 {[%clk 0:00:05.6]} 41. b6 {[%clk
0:00:16]} 41... Kb5 {[%clk 0:00:06.5]} 42. b7 {[%clk 0:00:16]} 1-0

[Event "Early-Titled-Tuesday-Blitz-October-24-2023"]
[Site "Chess.com"]
[Date "2023.10.24"]
[Round "7"]
[White "vovachesss"]
[Black "profedechess93"]
[Result "0-1"]
[WhiteElo "2772"]
[BlackElo "2615"]
[TimeControl "180+1"]
[EndTime "9:15:23 PDT"]
[Termination "profedechess93 won on time"]

1. d4 {[%clk 0:03:00.9]} 1... d5 {[%clk 0:02:59.9]} 2. c4 {[%clk 0:03:01]} 2...
c6 {[%clk 0:02:59.5]} 3. Nf3 {[%clk 0:03:00.7]} 3... Nf6 {[%clk 0:02:59.8]} 4.
Qb3 {[%clk 0:03:00.9]} 4... dxc4 {[%clk 0:02:59.8]} 5. Qxc4 {[%clk 0:03:01.4]}
5... Bg4 {[%clk 0:03:00.5]} 6. Nbd2 {[%clk 0:02:58.8]} 6... Nbd7 {[%clk
0:03:00.6]} 7. g3 {[%clk 0:02:58.9]} 7... e6 {[%clk 0:03:00.8]} 8. Bg2 {[%clk
0:02:59]} 8... Be7 {[%clk 0:03:01.4]} 9. O-O {[%clk 0:02:59.4]} 9... O-O {[%clk
0:03:02.1]} 10. Qb3 {[%clk 0:02:56.9]} 10... Qb6 {[%clk 0:03:02.1]} 11. Nc4
{[%clk 0:02:57.1]} 11... Qa6 {[%clk 0:03:02.6]} 12. e3 {[%clk 0:02:45.9]} 12...
Rab8 {[%clk 0:02:48.5]} 13. Nfe5 {[%clk 0:02:26.9]} 13... Nxe5 {[%clk
0:02:46.8]} 14. Nxe5 {[%clk 0:02:26.6]} 14... Be2 {[%clk 0:02:41]} 15. Re1
{[%clk 0:02:24.9]} 15... c5 {[%clk 0:02:39.5]} 16. dxc5 {[%clk 0:02:01.8]} 16...
Rfc8 {[%clk 0:02:38]} 17. Bd2 {[%clk 0:01:52.7]} 17... Rxc5 {[%clk 0:02:24.3]}
18. Bc3 {[%clk 0:01:53]} 18... Bd6 {[%clk 0:01:20.4]} 19. Nf3 {[%clk 0:00:44.4]}
19... Nd5 {[%clk 0:01:19.3]} 20. Bd4 {[%clk 0:00:31.8]} 20... Rcc8 {[%clk
0:01:19.4]} 21. Ne5 {[%clk 0:00:23.2]} 21... Bxe5 {[%clk 0:00:55.6]} 22. Bxe5
{[%clk 0:00:23.1]} 22... Bc4 {[%clk 0:00:56.3]} 23. Qd1 {[%clk 0:00:21.7]} 23...
Ra8 {[%clk 0:00:55.7]} 24. b3 {[%clk 0:00:18.1]} 24... Bd3 {[%clk 0:00:51.5]}
25. Qg4 {[%clk 0:00:14.7]} 25... Bg6 {[%clk 0:00:51]} 26. a3 {[%clk 0:00:09.9]}
26... Nc3 {[%clk 0:00:43.1]} 27. Bxc3 {[%clk 0:00:07.5]} 27... Rxc3 {[%clk
0:00:42.3]} 28. Qb4 {[%clk 0:00:08.4]} 28... Rc7 {[%clk 0:00:40.6]} 29. Rac1
{[%clk 0:00:08.4]} 29... Rd7 {[%clk 0:00:29.9]} 30. Red1 {[%clk 0:00:07.6]}
30... Rxd1+ {[%clk 0:00:28]} 31. Rxd1 {[%clk 0:00:08.5]} 31... Qe2 {[%clk
0:00:26.3]} 32. Re1 {[%clk 0:00:07.4]} 32... Qc2 {[%clk 0:00:23]} 33. Qxb7
{[%clk 0:00:06.8]} 33... Rd8 {[%clk 0:00:21.5]} 34. b4 {[%clk 0:00:04.9]} 34...
h5 {[%clk 0:00:20.3]} 35. h4 {[%clk 0:00:03]} 35... Qc3 {[%clk 0:00:18.4]} 36.
Rf1 {[%clk 0:00:02.9]} 36... Bd3 {[%clk 0:00:16.9]} 37. Rd1 {[%clk 0:00:03.3]}
37... Qc2 {[%clk 0:00:17]} 38. Bf3 {[%clk 0:00:03.9]} 38... Rc8 {[%clk
0:00:12.9]} 39. Rxd3 {[%clk 0:00:03.3]} 39... Qb1+ {[%clk 0:00:10.7]} 40. Kg2
{[%clk 0:00:03.3]} 40... Rc1 {[%clk 0:00:11.6]} 41. Qa8+ {[%clk 0:00:02.2]}
41... Kh7 {[%clk 0:00:11.6]} 42. Qe4+ {[%clk 0:00:02.8]} 42... g6 {[%clk
0:00:11.8]} 0-1

[Event "Early-Titled-Tuesday-Blitz-October-24-2023"]
[Site "Chess.com"]
[Date "2023.10.24"]
[Round "7"]
[White "ExcitingTrap"]
[Black "dosto07"]
[Result "1-0"]
[WhiteElo "2386"]
[BlackElo "2486"]
[TimeControl "180+1"]
[EndTime "9:15:25 PDT"]
[Termination "ExcitingTrap won on time"]

1. e4 {[%clk 0:03:00.9]} 1... e5 {[%clk 0:02:59.7]} 2. Nf3 {[%clk 0:03:00.9]}
2... Nc6 {[%clk 0:02:59.7]} 3. Bb5 {[%clk 0:03:01.6]} 3... a6 {[%clk 0:02:59.9]}
4. Ba4 {[%clk 0:03:02.3]} 4... Nf6 {[%clk 0:03:00.3]} 5. O-O {[%clk 0:03:02.5]}
5... Be7 {[%clk 0:03:00.8]} 6. d3 {[%clk 0:03:02.9]} 6... b5 {[%clk 0:02:59.8]}
7. Bb3 {[%clk 0:03:03]} 7... d6 {[%clk 0:03:00.7]} 8. c3 {[%clk 0:03:03.5]} 8...
O-O {[%clk 0:03:00.2]} 9. a4 {[%clk 0:03:03.3]} 9... b4 {[%clk 0:02:52.1]} 10.
a5 {[%clk 0:03:02.7]} 10... Rb8 {[%clk 0:02:50.9]} 11. Re1 {[%clk 0:02:56]}
11... Be6 {[%clk 0:02:47.3]} 12. c4 {[%clk 0:02:40]} 12... Bg4 {[%clk
0:02:35.3]} 13. Be3 {[%clk 0:02:37.1]} 13... Nd7 {[%clk 0:02:34.3]} 14. Ba4
{[%clk 0:02:31.6]} 14... Nd4 {[%clk 0:02:21.3]} 15. Bxd4 {[%clk 0:02:31.4]}
15... exd4 {[%clk 0:02:21]} 16. Nbd2 {[%clk 0:02:27.4]} 16... Bg5 {[%clk
0:01:53.1]} 17. Qc2 {[%clk 0:01:51.9]} 17... Bxd2 {[%clk 0:01:36.8]} 18. Nxd2
{[%clk 0:01:52]} 18... Nc5 {[%clk 0:01:35.4]} 19. h3 {[%clk 0:01:47.9]} 19...
Be6 {[%clk 0:01:26.7]} 20. Nf3 {[%clk 0:01:45.8]} 20... Qf6 {[%clk 0:01:21.3]}
21. Bc6 {[%clk 0:01:39.8]} 21... Bxh3 {[%clk 0:01:10.2]} 22. e5 {[%clk 0:01:36]}
22... dxe5 {[%clk 0:00:56.4]} 23. Nxe5 {[%clk 0:01:35.5]} 23... Be6 {[%clk
0:00:47.8]} 24. Qe2 {[%clk 0:01:27.1]} 24... Bf5 {[%clk 0:00:39.9]} 25. Rad1
{[%clk 0:01:17]} 25... h6 {[%clk 0:00:30.6]} 26. Qf3 {[%clk 0:01:13.9]} 26...
Rbd8 {[%clk 0:00:19.7]} 27. Bd5 {[%clk 0:01:00.5]} 27... Be6 {[%clk 0:00:16.5]}
28. Bc6 {[%clk 0:00:45]} 28... Qxf3 {[%clk 0:00:14.7]} 29. Bxf3 {[%clk
0:00:37.1]} 29... Rfe8 {[%clk 0:00:14.5]} 30. Nc6 {[%clk 0:00:36.9]} 30... Rd6
{[%clk 0:00:14.1]} 31. Nxb4 {[%clk 0:00:36.6]} 31... Bd7 {[%clk 0:00:13.1]} 32.
Rxe8+ {[%clk 0:00:33.7]} 32... Bxe8 {[%clk 0:00:13.4]} 33. Nd5 {[%clk
0:00:28.1]} 33... Kf8 {[%clk 0:00:10.8]} 34. b4 {[%clk 0:00:26.6]} 34... Ne6
{[%clk 0:00:07.1]} 35. Rb1 {[%clk 0:00:18.5]} 35... Bc6 {[%clk 0:00:06.4]} 36.
b5 {[%clk 0:00:11.8]} 36... axb5 {[%clk 0:00:05.7]} 37. a6 {[%clk 0:00:12.3]}
37... Bxd5 {[%clk 0:00:02.6]} 38. cxd5 {[%clk 0:00:10.2]} 38... Ng5 {[%clk
0:00:01.1]} 39. Ra1 {[%clk 0:00:06.2]} 1-0

[Event "Early-Titled-Tuesday-Blitz-October-24-2023"]
[Site "Chess.com"]
[Date "2023.10.24"]
[Round "7"]
[White "jcibarra"]
[Black "wannabe2700"]
[Result "1-0"]
[WhiteElo "2922"]
[BlackElo "2630"]
[TimeControl "180+1"]
[EndTime "9:15:26 PDT"]
[Termination "jcibarra won by resignation"]

1. e4 {[%clk 0:02:59.1]} 1... c5 {[%clk 0:02:13.9]} 2. Nf3 {[%clk 0:02:54.3]}
2... e6 {[%clk 0:02:12.6]} 3. d4 {[%clk 0:02:50.4]} 3... cxd4 {[%clk 0:02:13.5]}
4. Nxd4 {[%clk 0:02:50.7]} 4... Nc6 {[%clk 0:02:13]} 5. Nc3 {[%clk 0:02:50.2]}
5... Nf6 {[%clk 0:02:13.1]} 6. Ndb5 {[%clk 0:02:50.1]} 6... Bc5 {[%clk
0:02:08.7]} 7. Bf4 {[%clk 0:02:49.5]} 7... e5 {[%clk 0:02:06.6]} 8. Bg5 {[%clk
0:02:44.7]} 8... d6 {[%clk 0:02:01.8]} 9. Nd5 {[%clk 0:01:18.2]} 9... Bxf2+
{[%clk 0:01:55.5]} 10. Ke2 {[%clk 0:01:18.3]} 10... Bg4+ {[%clk 0:01:54.1]} 11.
Kxf2 {[%clk 0:01:10.9]} 11... Bxd1 {[%clk 0:01:44]} 12. Bxf6 {[%clk 0:01:09.7]}
12... gxf6 {[%clk 0:01:41.5]} 13. Rxd1 {[%clk 0:01:08.2]} 13... O-O {[%clk
0:01:38.2]} 14. Ne3 {[%clk 0:00:59.5]} 14... Nd4 {[%clk 0:01:08.5]} 15. Nc3
{[%clk 0:00:24.8]} 15... f5 {[%clk 0:01:04.5]} 16. exf5 {[%clk 0:00:23.9]} 16...
Qg5 {[%clk 0:00:57.1]} 17. Ncd5 {[%clk 0:00:22]} 17... Kh8 {[%clk 0:00:41.4]}
18. Bd3 {[%clk 0:00:20.6]} 18... Rg8 {[%clk 0:00:28.2]} 19. g3 {[%clk
0:00:20.7]} 19... Rae8 {[%clk 0:00:19.6]} 20. c3 {[%clk 0:00:20.1]} 20... Nc6
{[%clk 0:00:19.8]} 21. Be4 {[%clk 0:00:20.3]} 21... Ne7 {[%clk 0:00:19.1]} 22.
Nxe7 {[%clk 0:00:18.5]} 22... Qxe7 {[%clk 0:00:18.2]} 23. Rd3 {[%clk 0:00:18.5]}
23... Rd8 {[%clk 0:00:18.2]} 24. Rhd1 {[%clk 0:00:18.9]} 24... f6 {[%clk
0:00:18.6]} 25. Bd5 {[%clk 0:00:18.8]} 25... Rge8 {[%clk 0:00:18.3]} 26. Be6
{[%clk 0:00:19.3]} 26... Qc7 {[%clk 0:00:18.6]} 27. Nd5 {[%clk 0:00:19.9]} 27...
Qc5+ {[%clk 0:00:19]} 28. Kg2 {[%clk 0:00:19.5]} 28... Rf8 {[%clk 0:00:18.8]}
29. Re3 {[%clk 0:00:17.7]} 29... b6 {[%clk 0:00:19]} 30. Re4 {[%clk 0:00:17.6]}
30... a5 {[%clk 0:00:19.3]} 31. Rd2 {[%clk 0:00:17]} 31... b5 {[%clk 0:00:19.6]}
32. a3 {[%clk 0:00:17.1]} 32... Rb8 {[%clk 0:00:19.7]} 33. Rde2 {[%clk
0:00:15.9]} 33... Qc6 {[%clk 0:00:18.5]} 34. Rh4 {[%clk 0:00:15]} 34... Rbe8
{[%clk 0:00:18.3]} 35. Rd2 {[%clk 0:00:13.7]} 35... b4 {[%clk 0:00:17.4]} 36.
axb4 {[%clk 0:00:13.4]} 36... axb4 {[%clk 0:00:18.3]} 37. Rxb4 {[%clk
0:00:13.8]} 37... Rb8 {[%clk 0:00:18.2]} 38. Re4 {[%clk 0:00:13]} 38... Rb5
{[%clk 0:00:17.8]} 39. c4 {[%clk 0:00:12.1]} 39... Rb3 {[%clk 0:00:17.8]} 40.
Rc2 {[%clk 0:00:11.4]} 40... Rfb8 {[%clk 0:00:17.6]} 41. Ree2 {[%clk 0:00:11.4]}
41... Rxb2 {[%clk 0:00:17.6]} 42. Rxb2 {[%clk 0:00:10.9]} 42... Rxb2 {[%clk
0:00:15.5]} 43. Rxb2 {[%clk 0:00:11.8]} 43... Qxc4 {[%clk 0:00:16.2]} 44. Rb8+
{[%clk 0:00:11.2]} 44... Kg7 {[%clk 0:00:16.7]} 45. Rg8+ {[%clk 0:00:10.8]}
45... Kh6 {[%clk 0:00:16.8]} 46. Nxf6 {[%clk 0:00:08]} 46... Qe2+ {[%clk
0:00:16.6]} 47. Kh3 {[%clk 0:00:08.2]} 47... Qf1+ {[%clk 0:00:16.8]} 48. Kh4
{[%clk 0:00:08.7]} 1-0

[Event "Early-Titled-Tuesday-Blitz-October-24-2023"]
[Site "Chess.com"]
[Date "2023.10.24"]
[Round "7"]
[White "Boninknights"]
[Black "ama18"]
[Result "0-1"]
[WhiteElo "2307"]
[BlackElo "2528"]
[TimeControl "180+1"]
[EndTime "9:15:29 PDT"]
[Termination "ama18 won by resignation"]

1. d4 {[%clk 0:03:00.9]} 1... Nf6 {[%clk 0:02:59.7]} 2. Nf3 {[%clk 0:03:00.7]}
2... e6 {[%clk 0:03:00.2]} 3. c4 {[%clk 0:03:00.5]} 3... d5 {[%clk 0:02:59.5]}
4. g3 {[%clk 0:02:59.2]} 4... dxc4 {[%clk 0:02:59.3]} 5. Qa4+ {[%clk 0:02:57.8]}
5... Bd7 {[%clk 0:02:57]} 6. Qxc4 {[%clk 0:02:57.1]} 6... Bc6 {[%clk 0:02:57.7]}
7. Bg2 {[%clk 0:02:56.1]} 7... Nbd7 {[%clk 0:02:58.4]} 8. O-O {[%clk 0:02:53.9]}
8... Be7 {[%clk 0:02:57]} 9. Nbd2 {[%clk 0:02:51.5]} 9... O-O {[%clk 0:02:54.3]}
10. Qc2 {[%clk 0:02:50.6]} 10... Nb6 {[%clk 0:02:31.9]} 11. b3 {[%clk
0:02:46.3]} 11... Rc8 {[%clk 0:02:28.9]} 12. Bb2 {[%clk 0:02:45.3]} 12... Bb5
{[%clk 0:02:28.7]} 13. Rfe1 {[%clk 0:02:32.5]} 13... c5 {[%clk 0:02:26.3]} 14.
Rac1 {[%clk 0:02:22.9]} 14... cxd4 {[%clk 0:02:24.2]} 15. Qb1 {[%clk 0:02:21.9]}
15... d3 {[%clk 0:02:14.7]} 16. Rxc8 {[%clk 0:02:10.5]} 16... Nxc8 {[%clk
0:02:15.6]} 17. a4 {[%clk 0:02:06.2]} 17... Ba6 {[%clk 0:02:14.2]} 18. b4 {[%clk
0:02:02.4]} 18... b6 {[%clk 0:01:37.4]} 19. b5 {[%clk 0:01:43]} 19... Bb7 {[%clk
0:01:36.2]} 20. Qxd3 {[%clk 0:01:40.6]} 20... Qxd3 {[%clk 0:01:34.7]} 21. exd3
{[%clk 0:01:39.5]} 21... Bb4 {[%clk 0:01:35.3]} 22. Rc1 {[%clk 0:01:31.6]} 22...
Nd6 {[%clk 0:01:28]} 23. Nc4 {[%clk 0:01:23.7]} 23... Rc8 {[%clk 0:01:26.8]} 24.
Nfe5 {[%clk 0:01:18.1]} 24... Bxg2 {[%clk 0:01:24.8]} 25. Kxg2 {[%clk 0:01:18]}
25... Kf8 {[%clk 0:01:07.2]} 26. Nc6 {[%clk 0:01:12]} 26... Nxc4 {[%clk
0:01:02.2]} 27. Rxc4 {[%clk 0:00:55.9]} 27... Bd6 {[%clk 0:00:57]} 28. Nxa7
{[%clk 0:00:55.3]} 28... Rxc4 {[%clk 0:00:51.8]} 29. dxc4 {[%clk 0:00:53]} 29...
Nd7 {[%clk 0:00:52.5]} 30. Bd4 {[%clk 0:00:48.2]} 30... e5 {[%clk 0:00:51.5]}
31. Be3 {[%clk 0:00:46.9]} 31... Bc5 {[%clk 0:00:50]} 32. Nc8 {[%clk 0:00:39]}
32... Bxe3 {[%clk 0:00:39]} 33. fxe3 {[%clk 0:00:36.9]} 33... Ke8 {[%clk
0:00:39.9]} 34. Kf3 {[%clk 0:00:32.6]} 34... Kd8 {[%clk 0:00:38]} 35. Nd6 {[%clk
0:00:27.8]} 35... f6 {[%clk 0:00:37.8]} 36. Ke4 {[%clk 0:00:26.1]} 36... Nc5+
{[%clk 0:00:35.4]} 37. Kd5 {[%clk 0:00:26]} 37... Nxa4 {[%clk 0:00:28.8]} 38.
Ke6 {[%clk 0:00:20.4]} 38... Nc5+ {[%clk 0:00:23.2]} 39. Kf7 {[%clk 0:00:18.7]}
39... Kd7 {[%clk 0:00:23.7]} 40. Nf5 {[%clk 0:00:16.1]} 40... g6 {[%clk
0:00:23.2]} 41. Nh4 {[%clk 0:00:13.5]} 41... f5 {[%clk 0:00:23.4]} 42. Kg7
{[%clk 0:00:11.9]} 42... Ke6 {[%clk 0:00:21.2]} 43. Kxh7 {[%clk 0:00:09.1]}
43... g5 {[%clk 0:00:21.7]} 44. Nf3 {[%clk 0:00:06.3]} 44... g4 {[%clk
0:00:21.6]} 45. Nd2 {[%clk 0:00:01.5]} 45... Nd3 {[%clk 0:00:17.5]} 0-1

[Event "Early-Titled-Tuesday-Blitz-October-24-2023"]
[Site "Chess.com"]
[Date "2023.10.24"]
[Round "7"]
[White "scarabee43"]
[Black "KononenkoD"]
[Result "0-1"]
[WhiteElo "2789"]
[BlackElo "2601"]
[TimeControl "180+1"]
[EndTime "9:15:34 PDT"]
[Termination "KononenkoD won by resignation"]

1. d4 {[%clk 0:03:00.9]} 1... d5 {[%clk 0:02:58.1]} 2. c4 {[%clk 0:03:01]} 2...
c6 {[%clk 0:02:58.6]} 3. Nf3 {[%clk 0:03:01.3]} 3... Nf6 {[%clk 0:02:58.1]} 4.
Nc3 {[%clk 0:03:01.7]} 4... e6 {[%clk 0:02:58.2]} 5. Bg5 {[%clk 0:03:01.1]} 5...
dxc4 {[%clk 0:02:58.6]} 6. e4 {[%clk 0:03:00.1]} 6... b5 {[%clk 0:02:59]} 7. e5
{[%clk 0:03:00.5]} 7... h6 {[%clk 0:02:59.2]} 8. Bh4 {[%clk 0:02:59.6]} 8... g5
{[%clk 0:02:59.8]} 9. Nxg5 {[%clk 0:03:00]} 9... hxg5 {[%clk 0:03:00.1]} 10.
Bxg5 {[%clk 0:03:00.8]} 10... Nbd7 {[%clk 0:03:00.6]} 11. exf6 {[%clk
0:03:01.2]} 11... Bb7 {[%clk 0:03:00.3]} 12. g3 {[%clk 0:02:57.8]} 12... c5
{[%clk 0:02:51.2]} 13. d5 {[%clk 0:02:35.9]} 13... Qb6 {[%clk 0:02:51.2]} 14.
Bg2 {[%clk 0:02:34.9]} 14... O-O-O {[%clk 0:02:49.4]} 15. O-O {[%clk 0:02:32.2]}
15... b4 {[%clk 0:02:34.5]} 16. Na4 {[%clk 0:02:31]} 16... Qb5 {[%clk
0:02:34.9]} 17. dxe6 {[%clk 0:02:18.6]} 17... Bxg2 {[%clk 0:02:34.1]} 18. Kxg2
{[%clk 0:02:18.8]} 18... Ne5 {[%clk 0:02:27.9]} 19. Qe2 {[%clk 0:02:10.3]} 19...
Qc6+ {[%clk 0:02:20.1]} 20. f3 {[%clk 0:02:07.8]} 20... Qxe6 {[%clk 0:02:16.3]}
21. Rae1 {[%clk 0:01:57.6]} 21... Qh3+ {[%clk 0:01:21.6]} 22. Kg1 {[%clk
0:01:55.5]} 22... Nd3 {[%clk 0:01:21.4]} 23. Rd1 {[%clk 0:01:54]} 23... Bd6
{[%clk 0:01:20.7]} 24. f4 {[%clk 0:01:40.2]} 24... Rde8 {[%clk 0:01:07.4]} 25.
Qg2 {[%clk 0:01:20.3]} 25... Qxg2+ {[%clk 0:01:00.4]} 26. Kxg2 {[%clk
0:01:20.8]} 26... Re2+ {[%clk 0:01:00.5]} 27. Kf3 {[%clk 0:01:21.4]} 27... Rhxh2
{[%clk 0:01:00]} 28. b3 {[%clk 0:01:20.7]} 28... Rhf2+ {[%clk 0:00:35.5]} 29.
Rxf2 {[%clk 0:01:19.5]} 29... Rxf2+ {[%clk 0:00:36]} 30. Ke3 {[%clk 0:01:19.4]}
30... Rxa2 {[%clk 0:00:35.1]} 31. bxc4 {[%clk 0:01:19.3]} 31... Rxa4 {[%clk
0:00:32.9]} 32. Rxd3 {[%clk 0:01:18.9]} 32... Kc7 {[%clk 0:00:28.3]} 33. g4
{[%clk 0:01:01.9]} 33... Ra3 {[%clk 0:00:27.8]} 34. f5 {[%clk 0:00:57.5]} 34...
a5 {[%clk 0:00:23.1]} 35. Bh4 {[%clk 0:00:51.6]} 35... b3 {[%clk 0:00:20.3]} 36.
Be1 {[%clk 0:00:37.3]} 36... b2 {[%clk 0:00:18]} 37. Rxa3 {[%clk 0:00:37.2]}
37... b1=Q {[%clk 0:00:17.8]} 38. Bxa5+ {[%clk 0:00:37.7]} 38... Kc6 {[%clk
0:00:17.6]} 39. Bd2 {[%clk 0:00:37]} 39... Qg1+ {[%clk 0:00:16.9]} 40. Kd3
{[%clk 0:00:37]} 40... Qg3+ {[%clk 0:00:15.9]} 41. Be3 {[%clk 0:00:37]} 41...
Qxg4 {[%clk 0:00:16.4]} 42. Ra6+ {[%clk 0:00:36.6]} 42... Kd7 {[%clk 0:00:16.3]}
43. Ra7+ {[%clk 0:00:37.1]} 43... Kc8 {[%clk 0:00:16.3]} 44. Rxf7 {[%clk
0:00:36.6]} 44... Qxf5+ {[%clk 0:00:16.6]} 45. Kd2 {[%clk 0:00:36.4]} 45... Qe6
{[%clk 0:00:10.9]} 46. Rg7 {[%clk 0:00:36.4]} 46... Qxf6 {[%clk 0:00:10.9]} 47.
Rg5 {[%clk 0:00:37.1]} 47... Qb2+ {[%clk 0:00:10.5]} 48. Kd1 {[%clk 0:00:35.5]}
48... Qb3+ {[%clk 0:00:10]} 49. Kd2 {[%clk 0:00:35.7]} 49... Qxc4 {[%clk
0:00:10.5]} 50. Rg1 {[%clk 0:00:35.3]} 50... Kd7 {[%clk 0:00:10.8]} 51. Rc1
{[%clk 0:00:35.7]} 51... Qd5+ {[%clk 0:00:10.7]} 52. Ke2 {[%clk 0:00:36]} 52...
Qh5+ {[%clk 0:00:11.1]} 53. Kd2 {[%clk 0:00:36.1]} 53... Kc6 {[%clk 0:00:11.3]}
54. Kd3 {[%clk 0:00:36.6]} 54... Qd5+ {[%clk 0:00:11.2]} 55. Ke2 {[%clk
0:00:36.8]} 55... c4 {[%clk 0:00:11.6]} 56. Rd1 {[%clk 0:00:36.9]} 56... Qh5+
{[%clk 0:00:10.6]} 57. Kd2 {[%clk 0:00:37.5]} 57... Bb4+ {[%clk 0:00:09.8]} 58.
Kc1 {[%clk 0:00:37.1]} 58... Qe2 {[%clk 0:00:09.6]} 59. Bd4 {[%clk 0:00:33.8]}
59... Ba3+ {[%clk 0:00:08.2]} 0-1